[Event "*** SCC Grand Prix: Titled Tuesday Blitz"]
[Site "Chess.com"]
[Date "2020.07.07"]
[Round "1"]
[White "Marty435"]
[Black "PetrolulSah"]
[Result "0-1"]
[WhiteElo "2511"]
[BlackElo "2171"]
[TimeControl "180+1"]
[EndTime "10:08:08 PDT"]
[Termination "PetrolulSah won by checkmate"]

1. e4 {[%clk 0:03:00.9]} 1... e5 {[%clk 0:02:51.3]} 2. Nf3 {[%clk 0:02:59.7]}
2... Nf6 {[%clk 0:02:49]} 3. Nxe5 {[%clk 0:02:56.7]} 3... d6 {[%clk 0:02:48.8]}
4. Nxf7 {[%clk 0:02:55.2]} 4... Kxf7 {[%clk 0:02:48.4]} 5. d4 {[%clk 0:02:55.3]}
5... c6 {[%clk 0:02:47.6]} 6. Nc3 {[%clk 0:02:52]} 6... Be7 {[%clk 0:02:47]} 7.
Bc4+ {[%clk 0:02:30.6]} 7... Be6 {[%clk 0:02:45.9]} 8. Bxe6+ {[%clk 0:02:26.9]}
8... Kxe6 {[%clk 0:02:45.5]} 9. d5+ {[%clk 0:02:27.3]} 9... Kf7 {[%clk
0:02:37.2]} 10. Bf4 {[%clk 0:02:24.2]} 10... cxd5 {[%clk 0:02:33.9]} 11. exd5
{[%clk 0:02:23]} 11... Re8 {[%clk 0:02:27.5]} 12. O-O {[%clk 0:02:22.9]} 12...
Nbd7 {[%clk 0:02:24.3]} 13. Qf3 {[%clk 0:02:08.3]} 13... Ne5 {[%clk 0:02:15.3]}
14. Bxe5 {[%clk 0:01:56.6]} 14... dxe5 {[%clk 0:02:14.6]} 15. Rfe1 {[%clk
0:01:53]} 15... Bd6 {[%clk 0:02:08.6]} 16. Ne4 {[%clk 0:01:50.3]} 16... h6
{[%clk 0:01:57.1]} 17. c4 {[%clk 0:01:45.9]} 17... Kg8 {[%clk 0:01:49.9]} 18.
Rac1 {[%clk 0:01:34.9]} 18... Nxe4 {[%clk 0:01:44.7]} 19. Qxe4 {[%clk
0:01:35.1]} 19... b6 {[%clk 0:01:43.3]} 20. a3 {[%clk 0:01:32.9]} 20... a5
{[%clk 0:01:40.4]} 21. Kh1 {[%clk 0:01:28.6]} 21... Rf8 {[%clk 0:01:39.3]} 22.
f3 {[%clk 0:01:25.1]} 22... Rf4 {[%clk 0:01:38.6]} 23. Qg6 {[%clk 0:01:23.3]}
23... Qf6 {[%clk 0:01:35.3]} 24. Qd3 {[%clk 0:01:18.2]} 24... Rd4 {[%clk
0:01:33.7]} 25. Qe2 {[%clk 0:01:18.2]} 25... Qf4 {[%clk 0:01:27.5]} 26. g3
{[%clk 0:01:14.2]} 26... Qd2 {[%clk 0:01:24]} 27. Rc2 {[%clk 0:01:12]} 27...
Qxe2 {[%clk 0:01:22.5]} 28. Rexe2 {[%clk 0:01:12.9]} 28... Rc8 {[%clk
0:01:21.3]} 29. b3 {[%clk 0:01:11.3]} 29... a4 {[%clk 0:01:20.6]} 30. bxa4
{[%clk 0:01:09.5]} 30... Rcxc4 {[%clk 0:01:19.8]} 31. Rb2 {[%clk 0:01:09.4]}
31... Bc7 {[%clk 0:01:12.4]} 32. Kg2 {[%clk 0:01:01.9]} 32... Rxa4 {[%clk
0:01:11.4]} 33. d6 {[%clk 0:00:56.2]} 33... Rxd6 {[%clk 0:01:06.4]} 34. Rxe5
{[%clk 0:00:56.7]} 34... Rd3 {[%clk 0:01:03.6]} 35. Re7 {[%clk 0:00:49.4]} 35...
Rc4 {[%clk 0:00:54.8]} 36. f4 {[%clk 0:00:46.9]} 36... Rcc3 {[%clk 0:00:53.2]}
37. a4 {[%clk 0:00:40.8]} 37... Rc4 {[%clk 0:00:46.9]} 38. Rb5 {[%clk
0:00:32.3]} 38... Rc2+ {[%clk 0:00:43.7]} 39. Kh3 {[%clk 0:00:32.2]} 39... Rdd2
{[%clk 0:00:43]} 40. Kg4 {[%clk 0:00:30.9]} 40... Rxh2 {[%clk 0:00:41.1]} 41.
Rd5 {[%clk 0:00:30.7]} 41... Rhe2 {[%clk 0:00:36.1]} 42. Red7 {[%clk 0:00:25.6]}
42... Rc3 {[%clk 0:00:33.4]} 43. Rf5 {[%clk 0:00:21.5]} 43... Ree3 {[%clk
0:00:31.2]} 44. Rff7 {[%clk 0:00:21.4]} 44... Rxg3+ {[%clk 0:00:31]} 45. Kf5
{[%clk 0:00:22]} 45... Rc5+ {[%clk 0:00:30.4]} 46. Ke4 {[%clk 0:00:22.4]} 46...
Bd8 {[%clk 0:00:18.9]} 47. Ra7 {[%clk 0:00:09.8]} 47... Bf6 {[%clk 0:00:18.5]}
48. Rfb7 {[%clk 0:00:09]} 48... Rc4+ {[%clk 0:00:17.6]} 49. Kd5 {[%clk 0:00:09]}
49... Rc5+ {[%clk 0:00:17.4]} 50. Ke4 {[%clk 0:00:08.8]} 50... Rg6 {[%clk
0:00:16.1]} 51. Rxb6 {[%clk 0:00:07.7]} 51... Rg1 {[%clk 0:00:13.8]} 52. Rb8+
{[%clk 0:00:06.5]} 52... Kh7 {[%clk 0:00:13.3]} 53. a5 {[%clk 0:00:04.5]} 53...
Re1+ {[%clk 0:00:13.2]} 54. Kf3 {[%clk 0:00:05.1]} 54... Rc3+ {[%clk 0:00:12]}
55. Kf2 {[%clk 0:00:05.7]} 55... Ra1 {[%clk 0:00:11.2]} 56. Ra6 {[%clk
0:00:04.7]} 56... Ra2+ {[%clk 0:00:11]} 57. Ke1 {[%clk 0:00:03.5]} 57... Rc1#
{[%clk 0:00:10.9]} 0-1

[Event "*** SCC Grand Prix: Titled Tuesday Blitz"]
[Site "Chess.com"]
[Date "2020.07.07"]
[Round "1"]
[White "Alkhoori90"]
[Black "BeanScreen"]
[Result "0-1"]
[WhiteElo "2222"]
[BlackElo "2569"]
[TimeControl "180+1"]
[EndTime "10:08:12 PDT"]
[Termination "BeanScreen won by resignation"]

1. e4 {[%clk 0:03:00]} 1... e5 {[%clk 0:02:45.7]} 2. Nf3 {[%clk 0:02:58.7]} 2...
Nc6 {[%clk 0:02:46]} 3. Nc3 {[%clk 0:02:58.8]} 3... Nf6 {[%clk 0:02:46.3]} 4. d4
{[%clk 0:02:59.1]} 4... exd4 {[%clk 0:02:46.6]} 5. Nxd4 {[%clk 0:03:00]} 5...
Bb4 {[%clk 0:02:46.6]} 6. Nxc6 {[%clk 0:03:00]} 6... bxc6 {[%clk 0:02:47.5]} 7.
Bd3 {[%clk 0:02:51.6]} 7... d5 {[%clk 0:02:47.8]} 8. exd5 {[%clk 0:02:51.1]}
8... O-O {[%clk 0:02:48.1]} 9. O-O {[%clk 0:02:52]} 9... cxd5 {[%clk 0:02:48.6]}
10. Bg5 {[%clk 0:02:51.5]} 10... c6 {[%clk 0:02:48.6]} 11. Qf3 {[%clk
0:02:40.2]} 11... Be7 {[%clk 0:02:47.2]} 12. h3 {[%clk 0:02:39.4]} 12... Rb8
{[%clk 0:02:46.7]} 13. b3 {[%clk 0:02:39.6]} 13... h6 {[%clk 0:02:46]} 14. Bh4
{[%clk 0:02:36.2]} 14... Be6 {[%clk 0:02:46.8]} 15. Rfe1 {[%clk 0:02:35.1]}
15... Re8 {[%clk 0:02:46.5]} 16. Rad1 {[%clk 0:02:34]} 16... Bb4 {[%clk
0:02:44.5]} 17. Bf1 {[%clk 0:02:21.9]} 17... Qa5 {[%clk 0:02:09.9]} 18. Bxf6
{[%clk 0:02:05]} 18... gxf6 {[%clk 0:02:10.8]} 19. Re3 {[%clk 0:01:47.5]} 19...
Kg7 {[%clk 0:01:32.2]} 20. Ne2 {[%clk 0:01:38.5]} 20... Qc7 {[%clk 0:01:12.4]}
21. Nf4 {[%clk 0:01:35.9]} 21... Bd6 {[%clk 0:01:11.7]} 22. Nh5+ {[%clk
0:01:35.3]} 22... Kf8 {[%clk 0:00:48]} 23. Qxf6 {[%clk 0:01:29.5]} 23... Qd8
{[%clk 0:00:48]} 24. Qxh6+ {[%clk 0:01:14.4]} 24... Ke7 {[%clk 0:00:47.5]} 25.
Qg5+ {[%clk 0:01:13.2]} 25... Kd7 {[%clk 0:00:47.4]} 26. Qxd8+ {[%clk
0:01:07.8]} 26... Rexd8 {[%clk 0:00:45.2]} 27. c4 {[%clk 0:01:07]} 27... Kc7
{[%clk 0:00:42]} 28. cxd5 {[%clk 0:01:04.8]} 28... Bxd5 {[%clk 0:00:42.9]} 29.
Nf6 {[%clk 0:01:05.2]} 29... Be6 {[%clk 0:00:41.1]} 30. Rc1 {[%clk 0:00:58.3]}
30... Bf4 {[%clk 0:00:40.6]} 31. Rec3 {[%clk 0:00:46.8]} 31... Bxc1 {[%clk
0:00:40.6]} 32. Rxc1 {[%clk 0:00:47.7]} 32... Rd2 {[%clk 0:00:41.4]} 33. Ne4
{[%clk 0:00:39.5]} 33... Rxa2 {[%clk 0:00:40.6]} 34. Nc5 {[%clk 0:00:40.1]}
34... Rg8 {[%clk 0:00:35.6]} 35. g3 {[%clk 0:00:38.1]} 35... Bd5 {[%clk
0:00:35.1]} 36. Bg2 {[%clk 0:00:36.2]} 36... Rxg3 {[%clk 0:00:26.9]} 37. fxg3
{[%clk 0:00:30.8]} 37... Rxg2+ {[%clk 0:00:27.8]} 38. Kf1 {[%clk 0:00:31.3]}
38... Rxg3 {[%clk 0:00:28.4]} 39. b4 {[%clk 0:00:28.1]} 39... Rxh3 {[%clk
0:00:27.5]} 40. Kf2 {[%clk 0:00:27.9]} 40... Rh2+ {[%clk 0:00:22.5]} 41. Ke3
{[%clk 0:00:28]} 41... Rb2 {[%clk 0:00:22.2]} 42. Ra1 {[%clk 0:00:26]} 42... Kd6
{[%clk 0:00:12.8]} 43. Nd3 {[%clk 0:00:24.8]} 43... Ra2 {[%clk 0:00:12.6]} 44.
Rh1 {[%clk 0:00:23.1]} 44... Bxh1 {[%clk 0:00:13.5]} 45. Nc5 {[%clk 0:00:22.1]}
45... Bd5 {[%clk 0:00:13.4]} 46. Nb7+ {[%clk 0:00:21.5]} 46... Ke5 {[%clk
0:00:13.7]} 47. Nc5 {[%clk 0:00:20.4]} 47... Bc4 {[%clk 0:00:13.7]} 48. Nd7+
{[%clk 0:00:19.7]} 48... Kd6 {[%clk 0:00:13.7]} 49. Nf6 {[%clk 0:00:19.5]} 49...
Rb2 {[%clk 0:00:13.6]} 50. Kd4 {[%clk 0:00:19]} 50... Rxb4 {[%clk 0:00:13.8]}
51. Kc3 {[%clk 0:00:19.4]} 51... Ra4 {[%clk 0:00:13.7]} 52. Ne4+ {[%clk
0:00:19.8]} 52... Ke5 {[%clk 0:00:14.1]} 53. Nc5 {[%clk 0:00:19.7]} 53... Ra5
{[%clk 0:00:14.5]} 54. Nd7+ {[%clk 0:00:19.7]} 54... Kd6 {[%clk 0:00:14.7]} 55.
Nf6 {[%clk 0:00:19.5]} 55... Bd5 {[%clk 0:00:14.8]} 0-1

[Event "*** SCC Grand Prix: Titled Tuesday Blitz"]
[Site "Chess.com"]
[Date "2020.07.07"]
[Round "1"]
[White "Nafania1"]
[Black "viditchess"]
[Result "0-1"]
[WhiteElo "2460"]
[BlackElo "3017"]
[TimeControl "180+1"]
[EndTime "10:08:15 PDT"]
[Termination "viditchess won by resignation"]

1. e4 {[%clk 0:03:00.6]} 1... c5 {[%clk 0:02:59.5]} 2. Nf3 {[%clk 0:03:00.3]}
2... d6 {[%clk 0:02:59.6]} 3. Bb5+ {[%clk 0:03:00.4]} 3... Nd7 {[%clk
0:02:59.3]} 4. c3 {[%clk 0:03:00.3]} 4... Nf6 {[%clk 0:02:57.8]} 5. Bd3 {[%clk
0:03:00.3]} 5... g6 {[%clk 0:02:56.6]} 6. Bc2 {[%clk 0:03:00.2]} 6... Bg7 {[%clk
0:02:56.6]} 7. d4 {[%clk 0:03:00.3]} 7... O-O {[%clk 0:02:56.7]} 8. a4 {[%clk
0:03:00.4]} 8... b6 {[%clk 0:02:49.5]} 9. O-O {[%clk 0:03:00.2]} 9... Bb7 {[%clk
0:02:49.7]} 10. Re1 {[%clk 0:02:59.4]} 10... e6 {[%clk 0:02:44.8]} 11. Nbd2
{[%clk 0:02:47.5]} 11... Qc7 {[%clk 0:02:39.2]} 12. Bd3 {[%clk 0:02:24]} 12...
Rac8 {[%clk 0:02:35.9]} 13. Nf1 {[%clk 0:02:09.2]} 13... Rfd8 {[%clk 0:02:17.4]}
14. Bd2 {[%clk 0:01:40.2]} 14... e5 {[%clk 0:02:16.1]} 15. d5 {[%clk 0:01:34.4]}
15... c4 {[%clk 0:02:15.5]} 16. Bc2 {[%clk 0:01:29.1]} 16... Nc5 {[%clk
0:02:14.3]} 17. Bg5 {[%clk 0:01:23]} 17... h6 {[%clk 0:02:11.8]} 18. Bh4 {[%clk
0:01:23.2]} 18... a6 {[%clk 0:02:06.5]} 19. N3d2 {[%clk 0:01:16.3]} 19... b5
{[%clk 0:02:01.6]} 20. axb5 {[%clk 0:01:15.3]} 20... axb5 {[%clk 0:02:01.6]} 21.
Ne3 {[%clk 0:01:11.6]} 21... Re8 {[%clk 0:01:59.6]} 22. Ng4 {[%clk 0:00:54.9]}
22... Nh5 {[%clk 0:01:57.7]} 23. Bg3 {[%clk 0:00:43.7]} 23... Nf4 {[%clk
0:01:54.1]} 24. Qf3 {[%clk 0:00:35.6]} 24... h5 {[%clk 0:01:51.2]} 25. Ne3
{[%clk 0:00:35.3]} 25... Ncd3 {[%clk 0:01:45]} 26. Reb1 {[%clk 0:00:33.4]} 26...
Ra8 {[%clk 0:01:38.9]} 27. Rxa8 {[%clk 0:00:30]} 27... Rxa8 {[%clk 0:01:38.5]}
28. Bxf4 {[%clk 0:00:16.5]} 28... Nxf4 {[%clk 0:01:20]} 29. g3 {[%clk
0:00:13.7]} 29... Nh3+ {[%clk 0:01:20]} 30. Kg2 {[%clk 0:00:12.3]} 30... Ng5
{[%clk 0:01:20.6]} 31. Qe2 {[%clk 0:00:12.5]} 31... Nh7 {[%clk 0:01:10.3]} 32.
Qd1 {[%clk 0:00:10.4]} 32... Bh6 {[%clk 0:01:08.5]} 33. Ra1 {[%clk 0:00:09.1]}
33... Qb6 {[%clk 0:01:00.3]} 34. Rxa8+ {[%clk 0:00:08.6]} 34... Bxa8 {[%clk
0:01:01.2]} 35. Ndf1 {[%clk 0:00:08.2]} 35... Nf6 {[%clk 0:01:00.6]} 36. h3
{[%clk 0:00:07]} 36... Bb7 {[%clk 0:01:00.5]} 37. Kh2 {[%clk 0:00:06.6]} 37...
Qa7 {[%clk 0:00:59.1]} 38. Qf3 {[%clk 0:00:06.1]} 38... Kg7 {[%clk 0:00:58.7]}
39. Qd1 {[%clk 0:00:05.9]} 39... Bc8 {[%clk 0:00:57.5]} 40. Kg2 {[%clk 0:00:05]}
40... Qd7 {[%clk 0:00:56.8]} 41. h4 {[%clk 0:00:04.2]} 41... Qh3+ {[%clk
0:00:55.3]} 42. Kg1 {[%clk 0:00:04.6]} 42... Ng4 {[%clk 0:00:54.6]} 43. Nxg4
{[%clk 0:00:04.7]} 43... Bxg4 {[%clk 0:00:54.1]} 44. f3 {[%clk 0:00:05]} 44...
Bc8 {[%clk 0:00:35.7]} 45. b3 {[%clk 0:00:05]} 45... cxb3 {[%clk 0:00:32.5]} 46.
Bxb3 {[%clk 0:00:05.1]} 46... Ba6 {[%clk 0:00:25.7]} 47. Qe2 {[%clk 0:00:05.2]}
47... Qc8 {[%clk 0:00:25]} 48. Qd3 {[%clk 0:00:04.2]} 48... Qc5+ {[%clk
0:00:24.4]} 49. Kg2 {[%clk 0:00:04.7]} 49... Qa3 {[%clk 0:00:24.2]} 50. Qc2
{[%clk 0:00:04.7]} 50... Bc8 {[%clk 0:00:22.5]} 51. Qa2 {[%clk 0:00:04.5]} 51...
Qc1 {[%clk 0:00:20.6]} 52. Qc2 {[%clk 0:00:04.4]} 52... Qe1 {[%clk 0:00:20.5]}
53. Nh2 {[%clk 0:00:03.5]} 53... Be3 {[%clk 0:00:20.1]} 54. Qe2 {[%clk
0:00:03.1]} 54... Qxe2+ {[%clk 0:00:20.1]} 0-1

[Event "*** SCC Grand Prix: Titled Tuesday Blitz"]
[Site "Chess.com"]
[Date "2020.07.07"]
[Round "1"]
[White "Hanging_pointer"]
[Black "KaspMagAlpha"]
[Result "1/2-1/2"]
[WhiteElo "2566"]
[BlackElo "2241"]
[TimeControl "180+1"]
[EndTime "10:08:20 PDT"]
[Termination "Game drawn - insufficient material"]

1. d4 {[%clk 0:02:57.5]} 1... Nf6 {[%clk 0:02:59.4]} 2. c4 {[%clk 0:02:57]} 2...
e6 {[%clk 0:02:59.6]} 3. Nc3 {[%clk 0:02:56.5]} 3... Bb4 {[%clk 0:02:59.3]} 4.
Qc2 {[%clk 0:02:56.4]} 4... O-O {[%clk 0:02:58.3]} 5. Bg5 {[%clk 0:02:54.7]}
5... c5 {[%clk 0:02:57.6]} 6. Nf3 {[%clk 0:02:51]} 6... Nc6 {[%clk 0:02:51.4]}
7. dxc5 {[%clk 0:02:48.3]} 7... Bxc5 {[%clk 0:02:49.6]} 8. e3 {[%clk 0:02:48.4]}
8... h6 {[%clk 0:02:47.1]} 9. Bh4 {[%clk 0:02:47.8]} 9... a6 {[%clk 0:02:37.5]}
10. Be2 {[%clk 0:02:46.8]} 10... b6 {[%clk 0:02:37.1]} 11. O-O {[%clk
0:02:45.8]} 11... Bb7 {[%clk 0:02:37.1]} 12. Rfd1 {[%clk 0:02:44.7]} 12... Be7
{[%clk 0:02:36.4]} 13. Rac1 {[%clk 0:02:41.3]} 13... Rc8 {[%clk 0:02:35.9]} 14.
b3 {[%clk 0:02:39.9]} 14... Nh7 {[%clk 0:02:30.5]} 15. Bg3 {[%clk 0:02:33.4]}
15... d6 {[%clk 0:02:25.7]} 16. e4 {[%clk 0:02:27]} 16... Qc7 {[%clk 0:02:20.4]}
17. e5 {[%clk 0:02:25.4]} 17... dxe5 {[%clk 0:02:18.5]} 18. Nxe5 {[%clk
0:02:24.9]} 18... Bd6 {[%clk 0:01:55.6]} 19. Rxd6 {[%clk 0:02:15.4]} 19... Qxd6
{[%clk 0:01:52.9]} 20. Nxc6 {[%clk 0:02:11.7]} 20... Qxc6 {[%clk 0:01:51.5]} 21.
Bf3 {[%clk 0:02:11]} 21... Qd7 {[%clk 0:01:51.5]} 22. Rd1 {[%clk 0:02:04.7]}
22... Qe7 {[%clk 0:01:48.4]} 23. Bd6 {[%clk 0:02:00.6]} 23... Bxf3 {[%clk
0:00:47.1]} 24. Bxe7 {[%clk 0:01:52.6]} 24... Bxd1 {[%clk 0:00:46.8]} 25. Qxd1
{[%clk 0:01:52.9]} 25... Rfe8 {[%clk 0:00:46.4]} 26. Ba3 {[%clk 0:01:52]} 26...
Nf6 {[%clk 0:00:44.6]} 27. h3 {[%clk 0:01:40.6]} 27... Red8 {[%clk 0:00:44.4]}
28. Qc2 {[%clk 0:01:26.9]} 28... b5 {[%clk 0:00:44]} 29. Be7 {[%clk 0:01:23.9]}
29... Rd7 {[%clk 0:00:43]} 30. Bxf6 {[%clk 0:01:20.5]} 30... gxf6 {[%clk
0:00:43.9]} 31. Ne4 {[%clk 0:01:19.7]} 31... Rdc7 {[%clk 0:00:40]} 32. Nxf6+
{[%clk 0:01:05.2]} 32... Kg7 {[%clk 0:00:37.7]} 33. Qc3 {[%clk 0:01:04.5]} 33...
Kf8 {[%clk 0:00:36]} 34. c5 {[%clk 0:01:01.2]} 34... Ke7 {[%clk 0:00:33.6]} 35.
b4 {[%clk 0:01:00.2]} 35... a5 {[%clk 0:00:31.6]} 36. a3 {[%clk 0:00:59.8]}
36... axb4 {[%clk 0:00:31.6]} 37. axb4 {[%clk 0:01:00.7]} 37... Rd8 {[%clk
0:00:31.7]} 38. Ne4 {[%clk 0:01:00.6]} 38... Rd5 {[%clk 0:00:30.8]} 39. Nd6
{[%clk 0:01:00.3]} 39... Kd7 {[%clk 0:00:24.7]} 40. Qf6 {[%clk 0:00:55.8]} 40...
Kc6 {[%clk 0:00:24.3]} 41. Qxh6 {[%clk 0:00:51]} 41... Rd1+ {[%clk 0:00:22.1]}
42. Kh2 {[%clk 0:00:50.4]} 42... Rd4 {[%clk 0:00:22.2]} 43. Qe3 {[%clk
0:00:26.8]} 43... Rxb4 {[%clk 0:00:20.6]} 44. h4 {[%clk 0:00:27.3]} 44... Rc4
{[%clk 0:00:20.2]} 45. g3 {[%clk 0:00:23.8]} 45... Rxc5 {[%clk 0:00:20.4]} 46.
Qe4+ {[%clk 0:00:21.9]} 46... Rd5 {[%clk 0:00:20.3]} 47. Ne8 {[%clk 0:00:19.5]}
47... Rb7 {[%clk 0:00:19.5]} 48. Nf6 {[%clk 0:00:20]} 48... b4 {[%clk
0:00:19.4]} 49. Nxd5 {[%clk 0:00:20]} 49... exd5 {[%clk 0:00:20.3]} 50. Qc2+
{[%clk 0:00:19.2]} 50... Kd6 {[%clk 0:00:19.9]} 51. h5 {[%clk 0:00:20.1]} 51...
b3 {[%clk 0:00:20.2]} 52. Qb2 {[%clk 0:00:21]} 52... f6 {[%clk 0:00:20.4]} 53.
Kh3 {[%clk 0:00:21.4]} 53... Kc5 {[%clk 0:00:20.7]} 54. h6 {[%clk 0:00:21.8]}
54... d4 {[%clk 0:00:21.1]} 55. h7 {[%clk 0:00:22]} 55... Rxh7+ {[%clk
0:00:20.5]} 56. Kg4 {[%clk 0:00:22.5]} 56... Rb7 {[%clk 0:00:21.3]} 57. Kf5
{[%clk 0:00:22.8]} 57... Rb4 {[%clk 0:00:21.7]} 58. Kxf6 {[%clk 0:00:22.8]}
58... Rc4 {[%clk 0:00:22.6]} 59. Qxb3 {[%clk 0:00:22.3]} 59... Rc3 {[%clk
0:00:22.2]} 60. Qb2 {[%clk 0:00:21.6]} 60... Kc4 {[%clk 0:00:23.1]} 61. Qe2+
{[%clk 0:00:20.5]} 61... d3 {[%clk 0:00:24]} 62. Qe3 {[%clk 0:00:20]} 62... Kb3
{[%clk 0:00:24.4]} 63. Qb6+ {[%clk 0:00:19.8]} 63... Kc2 {[%clk 0:00:25.3]} 64.
g4 {[%clk 0:00:19.7]} 64... d2 {[%clk 0:00:26.2]} 65. Qd4 {[%clk 0:00:19.5]}
65... d1=Q {[%clk 0:00:27.1]} 66. Qa4+ {[%clk 0:00:19.8]} 66... Kd2 {[%clk
0:00:26.8]} 67. Qxd1+ {[%clk 0:00:20.7]} 67... Kxd1 {[%clk 0:00:27.2]} 68. f4
{[%clk 0:00:21.5]} 68... Rc4 {[%clk 0:00:25.8]} 69. Ke5 {[%clk 0:00:21.2]} 69...
Ke2 {[%clk 0:00:26.4]} 70. g5 {[%clk 0:00:21.7]} 70... Kf3 {[%clk 0:00:26.9]}
71. f5 {[%clk 0:00:22.1]} 71... Rc5+ {[%clk 0:00:26.5]} 72. Ke6 {[%clk
0:00:21.7]} 72... Kf4 {[%clk 0:00:27]} 73. f6 {[%clk 0:00:22.1]} 73... Rxg5
{[%clk 0:00:27.3]} 74. f7 {[%clk 0:00:21.9]} 74... Rf5 {[%clk 0:00:27.7]} 75.
Ke7 {[%clk 0:00:22.8]} 75... Rxf7+ {[%clk 0:00:27.8]} 76. Kxf7 {[%clk
0:00:22.8]} 1/2-1/2

[Event "*** SCC Grand Prix: Titled Tuesday Blitz"]
[Site "Chess.com"]
[Date "2020.07.07"]
[Round "1"]
[White "shineatchess"]
[Black "MomchilPetkov"]
[Result "0-1"]
[WhiteElo "2174"]
[BlackElo "2535"]
[TimeControl "180+1"]
[EndTime "10:08:26 PDT"]
[Termination "MomchilPetkov won by checkmate"]

1. d4 {[%clk 0:02:58.6]} 1... Nf6 {[%clk 0:02:58.4]} 2. c4 {[%clk 0:02:58.5]}
2... e6 {[%clk 0:02:58.4]} 3. Nc3 {[%clk 0:02:58.5]} 3... Bb4 {[%clk 0:02:55.1]}
4. e3 {[%clk 0:02:58.8]} 4... c5 {[%clk 0:02:50.1]} 5. Ne2 {[%clk 0:02:56.7]}
5... cxd4 {[%clk 0:02:49.4]} 6. exd4 {[%clk 0:02:56.5]} 6... O-O {[%clk
0:02:49.5]} 7. a3 {[%clk 0:02:53.4]} 7... Be7 {[%clk 0:02:49.9]} 8. d5 {[%clk
0:02:42.7]} 8... exd5 {[%clk 0:02:50]} 9. cxd5 {[%clk 0:02:42.5]} 9... Bc5
{[%clk 0:02:49.6]} 10. Ng3 {[%clk 0:02:10.5]} 10... Qb6 {[%clk 0:01:55.1]} 11.
Qf3 {[%clk 0:02:07.4]} 11... d6 {[%clk 0:01:46]} 12. h3 {[%clk 0:02:05.3]} 12...
Nbd7 {[%clk 0:01:36.7]} 13. b4 {[%clk 0:01:25.1]} 13... Bd4 {[%clk 0:01:34.4]}
14. Bb2 {[%clk 0:01:14.2]} 14... Re8+ {[%clk 0:01:14.7]} 15. Kd2 {[%clk
0:00:41.8]} 15... Ne5 {[%clk 0:00:56.5]} 16. Qd1 {[%clk 0:00:40.3]} 16... Bxf2
{[%clk 0:00:55.2]} 17. Nge4 {[%clk 0:00:15.6]} 17... Nxe4+ {[%clk 0:00:51.2]}
18. Nxe4 {[%clk 0:00:14.8]} 18... Qe3+ {[%clk 0:00:51]} 19. Kc2 {[%clk
0:00:15.3]} 19... Qxe4+ {[%clk 0:00:51.2]} 20. Bd3 {[%clk 0:00:15.5]} 20... Nxd3
{[%clk 0:00:50.5]} 21. Qxd3 {[%clk 0:00:16.4]} 21... Bf5 {[%clk 0:00:49.3]} 22.
Qxe4 {[%clk 0:00:15.5]} 22... Bxe4+ {[%clk 0:00:50.2]} 23. Kd2 {[%clk
0:00:13.4]} 23... Bxg2 {[%clk 0:00:46.4]} 24. Rh2 {[%clk 0:00:12.1]} 24... Be3+
{[%clk 0:00:46.3]} 25. Kd3 {[%clk 0:00:11.4]} 25... Bxd5 {[%clk 0:00:43]} 26.
Re1 {[%clk 0:00:08.9]} 26... Bf4 {[%clk 0:00:31.4]} 27. Rxe8+ {[%clk 0:00:08.4]}
27... Rxe8 {[%clk 0:00:30.9]} 28. Rf2 {[%clk 0:00:07.4]} 28... Be5 {[%clk
0:00:30.2]} 29. Bxe5 {[%clk 0:00:06.3]} 29... dxe5 {[%clk 0:00:30.1]} 30. Ke3
{[%clk 0:00:05.1]} 30... Bc6 {[%clk 0:00:26.1]} 31. Rd2 {[%clk 0:00:05.5]} 31...
a6 {[%clk 0:00:26.1]} 32. Rd6 {[%clk 0:00:04.9]} 32... Kf8 {[%clk 0:00:26.2]}
33. h4 {[%clk 0:00:04.7]} 33... Ke7 {[%clk 0:00:26.4]} 34. Rd1 {[%clk
0:00:04.5]} 34... Rd8 {[%clk 0:00:26.8]} 35. Rg1 {[%clk 0:00:04.2]} 35... g6
{[%clk 0:00:27.2]} 36. h5 {[%clk 0:00:04.4]} 36... Rd4 {[%clk 0:00:26]} 37. hxg6
{[%clk 0:00:03.9]} 37... hxg6 {[%clk 0:00:26.9]} 38. Rf1 {[%clk 0:00:04.4]}
38... Rf4 {[%clk 0:00:26.8]} 39. Rd1 {[%clk 0:00:03.5]} 39... Rf3+ {[%clk
0:00:27]} 40. Ke2 {[%clk 0:00:03.3]} 40... Rxa3 {[%clk 0:00:27.9]} 41. Rg1
{[%clk 0:00:02.5]} 41... Rb3 {[%clk 0:00:27.2]} 42. Kd2 {[%clk 0:00:02.4]} 42...
Rxb4 {[%clk 0:00:27.3]} 43. Re1 {[%clk 0:00:03]} 43... Rd4+ {[%clk 0:00:28.2]}
44. Kc3 {[%clk 0:00:02.9]} 44... f6 {[%clk 0:00:28.5]} 45. Re3 {[%clk
0:00:02.7]} 45... g5 {[%clk 0:00:28.6]} 46. Rh3 {[%clk 0:00:02.4]} 46... Ke6
{[%clk 0:00:28.9]} 47. Rh7 {[%clk 0:00:02.9]} 47... g4 {[%clk 0:00:28.7]} 48.
Rh8 {[%clk 0:00:03.8]} 48... Kf5 {[%clk 0:00:28]} 49. Rg8 {[%clk 0:00:04.4]}
49... Kf4 {[%clk 0:00:27.9]} 50. Rg7 {[%clk 0:00:04.4]} 50... f5 {[%clk
0:00:28]} 51. Rg8 {[%clk 0:00:04.8]} 51... g3 {[%clk 0:00:28.2]} 52. Rg7 {[%clk
0:00:05.7]} 52... g2 {[%clk 0:00:28.6]} 53. Rg8 {[%clk 0:00:06.6]} 53... Rd1
{[%clk 0:00:29]} 54. Rg7 {[%clk 0:00:06.3]} 54... g1=Q {[%clk 0:00:28.9]} 55.
Rxg1 {[%clk 0:00:07.2]} 55... Rxg1 {[%clk 0:00:29.4]} 56. Kd3 {[%clk 0:00:07.8]}
56... Bd5 {[%clk 0:00:27.7]} 57. Kd2 {[%clk 0:00:08.7]} 57... Rg3 {[%clk
0:00:27.2]} 58. Ke2 {[%clk 0:00:07.8]} 58... Ke4 {[%clk 0:00:25]} 59. Kd2 {[%clk
0:00:07.6]} 59... Kd4 {[%clk 0:00:24.5]} 60. Ke2 {[%clk 0:00:07.8]} 60... Rg2+
{[%clk 0:00:24.8]} 61. Kf1 {[%clk 0:00:07.5]} 61... Ke3 {[%clk 0:00:24.2]} 62.
Ke1 {[%clk 0:00:08.4]} 62... Rg1# {[%clk 0:00:24.7]} 0-1